[Event "*** SCC Grand Prix: Titled Tuesday Blitz"]
[Site "Chess.com"]
[Date "2020.06.23"]
[Round "3"]
[White "queen_iryna"]
[Black "Ermito2020"]
[Result "0-1"]
[WhiteElo "2252"]
[BlackElo "2498"]
[TimeControl "180+1"]
[EndTime "10:29:30 PDT"]
[Termination "Ermito2020 won by resignation"]

1. d4 {[%clk 0:03:00.9]} 1... d5 {[%clk 0:02:58.1]} 2. c4 {[%clk 0:02:59.2]}
2... e6 {[%clk 0:02:58]} 3. Nc3 {[%clk 0:02:58.3]} 3... c6 {[%clk 0:02:57.9]} 4.
cxd5 {[%clk 0:02:57.4]} 4... exd5 {[%clk 0:02:57.2]} 5. Nf3 {[%clk 0:02:55]}
5... Nf6 {[%clk 0:02:57.5]} 6. Bg5 {[%clk 0:02:53.9]} 6... Be7 {[%clk
0:02:57.1]} 7. Qc2 {[%clk 0:02:53.1]} 7... O-O {[%clk 0:02:57.5]} 8. e3 {[%clk
0:02:42]} 8... Nbd7 {[%clk 0:02:58]} 9. Bd3 {[%clk 0:02:40.2]} 9... Re8 {[%clk
0:02:58.6]} 10. O-O {[%clk 0:02:39.8]} 10... Nf8 {[%clk 0:02:59.2]} 11. Bxf6
{[%clk 0:02:39.8]} 11... Bxf6 {[%clk 0:02:58.7]} 12. b4 {[%clk 0:02:40.3]} 12...
a6 {[%clk 0:02:45.6]} 13. Rfc1 {[%clk 0:02:36.7]} 13... g6 {[%clk 0:02:44.6]}
14. a4 {[%clk 0:02:35.5]} 14... Ne6 {[%clk 0:02:43.9]} 15. Rab1 {[%clk
0:02:14.5]} 15... a5 {[%clk 0:02:25.7]} 16. b5 {[%clk 0:02:03.1]} 16... c5
{[%clk 0:02:25.8]} 17. dxc5 {[%clk 0:02:01.9]} 17... Nxc5 {[%clk 0:02:26.5]} 18.
Ra1 {[%clk 0:00:49.5]} 18... Bg4 {[%clk 0:02:22.7]} 19. Nd4 {[%clk 0:00:43.4]}
19... Rc8 {[%clk 0:02:18.9]} 20. Qd2 {[%clk 0:00:36.1]} 20... Be5 {[%clk
0:02:17.2]} 21. Bc2 {[%clk 0:00:29.2]} 21... Qh4 {[%clk 0:02:10.7]} 22. g3
{[%clk 0:00:26.5]} 22... Qd8 {[%clk 0:02:02.3]} 23. f3 {[%clk 0:00:17.5]} 23...
Bh3 {[%clk 0:01:58]} 24. Bd1 {[%clk 0:00:14.3]} 24... h5 {[%clk 0:01:55.4]} 25.
Nde2 {[%clk 0:00:13.9]} 25... Be6 {[%clk 0:01:46.1]} 26. Nd4 {[%clk 0:00:13.9]}
26... h4 {[%clk 0:01:44.2]} 27. Nxe6 {[%clk 0:00:14]} 27... fxe6 {[%clk
0:01:43.4]} 28. f4 {[%clk 0:00:13.1]} 28... Bf6 {[%clk 0:01:41.3]} 29. Rab1
{[%clk 0:00:13]} 29... hxg3 {[%clk 0:01:38.6]} 30. hxg3 {[%clk 0:00:12.8]} 30...
Kg7 {[%clk 0:01:39.5]} 31. Kg2 {[%clk 0:00:12.6]} 31... Rh8 {[%clk 0:01:34.3]}
32. Bf3 {[%clk 0:00:12.8]} 32... Qe7 {[%clk 0:01:21]} 33. Ne2 {[%clk 0:00:12.8]}
33... b6 {[%clk 0:01:11.6]} 34. Nd4 {[%clk 0:00:12.6]} 34... Nxa4 {[%clk
0:01:10.3]} 35. Nc6 {[%clk 0:00:12.2]} 35... Qf7 {[%clk 0:01:07.8]} 36. Qd1
{[%clk 0:00:10.1]} 36... Nc3 {[%clk 0:01:06]} 37. Rxc3 {[%clk 0:00:09.2]} 37...
Bxc3 {[%clk 0:01:06.1]} 38. Qd3 {[%clk 0:00:09.1]} 38... Bf6 {[%clk 0:01:05]}
39. Rf1 {[%clk 0:00:09.1]} 39... a4 {[%clk 0:01:02.8]} 40. Bd1 {[%clk
0:00:08.7]} 40... Ra8 {[%clk 0:01:01.9]} 41. Ne5 {[%clk 0:00:07.4]} 41... Qe8
{[%clk 0:00:58.1]} 42. Bc2 {[%clk 0:00:06.8]} 42... Rh6 {[%clk 0:00:57.6]} 43.
Ng4 {[%clk 0:00:06.2]} 43... Rh8 {[%clk 0:00:56.2]} 44. Nxf6 {[%clk 0:00:06.4]}
44... Kxf6 {[%clk 0:00:56.1]} 45. Qd4+ {[%clk 0:00:07.3]} 45... Kf7 {[%clk
0:00:55.8]} 46. Qxb6 {[%clk 0:00:07.5]} 46... a3 {[%clk 0:00:52.7]} 47. Qc7+
{[%clk 0:00:06.1]} 47... Qe7 {[%clk 0:00:51.7]} 48. Bxg6+ {[%clk 0:00:05.7]}
48... Kf6 {[%clk 0:00:51.6]} 49. Qc3+ {[%clk 0:00:05.1]} 49... Kxg6 {[%clk
0:00:51.2]} 50. Qc2+ {[%clk 0:00:05.4]} 50... Kg7 {[%clk 0:00:50.9]} 51. Qc3+
{[%clk 0:00:05.1]} 51... Qf6 {[%clk 0:00:51.5]} 52. Qc7+ {[%clk 0:00:04.6]}
52... Qf7 {[%clk 0:00:51.5]} 53. Qc3+ {[%clk 0:00:04.4]} 53... Kg8 {[%clk
0:00:47.4]} 54. b6 {[%clk 0:00:04.7]} 54... a2 {[%clk 0:00:45.1]} 55. b7 {[%clk
0:00:04.6]} 55... Qxb7 {[%clk 0:00:42.6]} 56. Qf6 {[%clk 0:00:04.7]} 56... Qg7
{[%clk 0:00:43.1]} 57. Qxe6+ {[%clk 0:00:04.3]} 57... Qf7 {[%clk 0:00:43]} 58.
Qg4+ {[%clk 0:00:03.9]} 58... Kf8 {[%clk 0:00:43]} 59. Qg5 {[%clk 0:00:03.6]}
59... Rg8 {[%clk 0:00:29.1]} 60. Ra1 {[%clk 0:00:04.5]} 60... Rxg5 {[%clk
0:00:28.3]} 0-1

[Event "*** SCC Grand Prix: Titled Tuesday Blitz"]
[Site "Chess.com"]
[Date "2020.06.23"]
[Round "3"]
[White "Chessdreamer2020"]
[Black "j_coca"]
[Result "1-0"]
[WhiteElo "2455"]
[BlackElo "2191"]
[TimeControl "180+1"]
[EndTime "10:29:31 PDT"]
[Termination "Chessdreamer2020 won by resignation"]

1. e4 {[%clk 0:03:00.9]} 1... g6 {[%clk 0:02:57.6]} 2. d4 {[%clk 0:02:56.7]}
2... Bg7 {[%clk 0:02:57.9]} 3. c3 {[%clk 0:02:57.2]} 3... d6 {[%clk 0:02:57.6]}
4. f4 {[%clk 0:02:55]} 4... f5 {[%clk 0:02:53.3]} 5. e5 {[%clk 0:02:52.8]} 5...
e6 {[%clk 0:02:51.5]} 6. Nf3 {[%clk 0:02:51.9]} 6... Nh6 {[%clk 0:02:50.8]} 7.
Bd3 {[%clk 0:02:51.2]} 7... O-O {[%clk 0:02:50.1]} 8. O-O {[%clk 0:02:51.3]}
8... Nc6 {[%clk 0:02:50.4]} 9. h3 {[%clk 0:02:47.1]} 9... Nf7 {[%clk 0:02:50.2]}
10. Be3 {[%clk 0:02:46.8]} 10... g5 {[%clk 0:02:48.9]} 11. exd6 {[%clk
0:02:41.9]} 11... gxf4 {[%clk 0:02:48.5]} 12. Bxf4 {[%clk 0:02:41.7]} 12... cxd6
{[%clk 0:02:48.3]} 13. d5 {[%clk 0:02:30]} 13... Nce5 {[%clk 0:02:44.3]} 14.
dxe6 {[%clk 0:02:23.8]} 14... Bxe6 {[%clk 0:02:43.8]} 15. Nd4 {[%clk 0:02:21.8]}
15... Bd7 {[%clk 0:02:38.7]} 16. Bxf5 {[%clk 0:02:16.4]} 16... Bxf5 {[%clk
0:02:34.8]} 17. Nxf5 {[%clk 0:02:16.4]} 17... Qb6+ {[%clk 0:02:34.2]} 18. Rf2
{[%clk 0:02:13.1]} 18... Ng6 {[%clk 0:02:17.5]} 19. Be3 {[%clk 0:02:09.3]} 19...
Qa5 {[%clk 0:02:13]} 20. Nxg7 {[%clk 0:02:08.6]} 20... Kxg7 {[%clk 0:02:12.6]}
21. Bd4+ {[%clk 0:02:07.1]} 21... Nfe5 {[%clk 0:02:12]} 22. Nd2 {[%clk
0:02:06.1]} 22... Rxf2 {[%clk 0:02:07.8]} 23. Bxf2 {[%clk 0:02:06.3]} 23... Nf4
{[%clk 0:01:47.9]} 24. Bd4 {[%clk 0:02:04.3]} 24... Ne6 {[%clk 0:01:48.1]} 25.
Qg4+ {[%clk 0:02:02.5]} 25... Kf6 {[%clk 0:01:46.1]} 26. Ne4+ {[%clk 0:02:01]}
26... Ke7 {[%clk 0:01:45.9]} 27. Qh4+ {[%clk 0:01:56.3]} 27... Kd7 {[%clk
0:01:45.5]} 28. Rd1 {[%clk 0:01:53]} 28... Nxd4 {[%clk 0:01:35.8]} 29. Qxh7+
{[%clk 0:01:50.6]} 29... Kc6 {[%clk 0:01:27.7]} 30. Rxd4 {[%clk 0:01:50.8]}
30... Rd8 {[%clk 0:01:26.5]} 31. Qe7 {[%clk 0:01:48.3]} 31... Qc7 {[%clk
0:01:23]} 32. Qxc7+ {[%clk 0:01:45.8]} 32... Kxc7 {[%clk 0:01:23.1]} 33. Rd2
{[%clk 0:01:41.4]} 33... d5 {[%clk 0:01:20.6]} 34. Nf6 {[%clk 0:01:34.2]} 34...
Kc6 {[%clk 0:01:20.9]} 35. Re2 {[%clk 0:01:32.1]} 35... Nd3 {[%clk 0:01:17.7]}
36. g4 {[%clk 0:01:27.8]} 36... Nf4 {[%clk 0:01:15.9]} 37. Re3 {[%clk
0:01:25.6]} 37... Rf8 {[%clk 0:01:13.7]} 38. Nh7 {[%clk 0:01:17.5]} 38... Rh8
{[%clk 0:01:13.2]} 39. Ng5 {[%clk 0:01:17.2]} 39... b5 {[%clk 0:01:11]} 40. Kh2
{[%clk 0:01:13.5]} 40... a5 {[%clk 0:01:09.3]} 41. Kg3 {[%clk 0:01:11.3]} 41...
d4 {[%clk 0:01:01.2]} 42. cxd4 {[%clk 0:01:09.4]} 42... Nd5 {[%clk 0:01:01.1]}
43. Re6+ {[%clk 0:01:09.1]} 43... Kd7 {[%clk 0:01:01.1]} 44. Ra6 {[%clk
0:01:06]} 44... a4 {[%clk 0:00:57]} 45. Ra7+ {[%clk 0:01:05.8]} 45... Kc6 {[%clk
0:00:56.7]} 46. h4 {[%clk 0:01:03.1]} 46... Nb4 {[%clk 0:00:52.8]} 47. a3 {[%clk
0:00:48.3]} 47... Nc2 {[%clk 0:00:52.8]} 48. h5 {[%clk 0:00:43.4]} 48... Nxd4
{[%clk 0:00:52.7]} 49. Ra6+ {[%clk 0:00:39.9]} 49... Kd5 {[%clk 0:00:50]} 50.
Rb6 {[%clk 0:00:36.2]} 50... Kc5 {[%clk 0:00:48.7]} 51. Rf6 {[%clk 0:00:35.3]}
51... Re8 {[%clk 0:00:39.1]} 52. h6 {[%clk 0:00:33.2]} 52... Ne2+ {[%clk
0:00:35.4]} 53. Kh4 {[%clk 0:00:28]} 53... Rh8 {[%clk 0:00:32.8]} 54. h7 {[%clk
0:00:27.1]} 54... Kc4 {[%clk 0:00:32]} 55. Rh6 {[%clk 0:00:21.4]} 55... Nf4
{[%clk 0:00:31.5]} 56. Nf7 {[%clk 0:00:19.5]} 56... Ng6+ {[%clk 0:00:27.5]} 57.
Kg5 {[%clk 0:00:18]} 57... Ne5 {[%clk 0:00:13.8]} 58. Nxh8 {[%clk 0:00:15.7]}
1-0

[Event "*** SCC Grand Prix: Titled Tuesday Blitz"]
[Site "Chess.com"]
[Date "2020.06.23"]
[Round "3"]
[White "chenxiaoyuer"]
[Black "Th3_Hound"]
[Result "0-1"]
[WhiteElo "2363"]
[BlackElo "2552"]
[TimeControl "180+1"]
[EndTime "10:29:32 PDT"]
[Termination "Th3_Hound won on time"]

1. e4 {[%clk 0:03:00.9]} 1... e5 {[%clk 0:03:00]} 2. Nf3 {[%clk 0:03:00.6]} 2...
Nc6 {[%clk 0:03:00.5]} 3. Bb5 {[%clk 0:02:59.9]} 3... a6 {[%clk 0:03:00.4]} 4.
Ba4 {[%clk 0:02:59.1]} 4... Nf6 {[%clk 0:03:00.6]} 5. d3 {[%clk 0:02:57.9]} 5...
b5 {[%clk 0:02:59.8]} 6. Bb3 {[%clk 0:02:57.4]} 6... Be7 {[%clk 0:03:00.3]} 7.
O-O {[%clk 0:02:57]} 7... O-O {[%clk 0:02:59.6]} 8. Bd5 {[%clk 0:02:56.4]} 8...
Bd6 {[%clk 0:02:54.7]} 9. Bg5 {[%clk 0:02:51.5]} 9... h6 {[%clk 0:02:52.1]} 10.
Bh4 {[%clk 0:02:51.1]} 10... Rb8 {[%clk 0:02:49.9]} 11. Nbd2 {[%clk 0:02:34]}
11... Bb7 {[%clk 0:02:48.1]} 12. Re1 {[%clk 0:02:19.7]} 12... Re8 {[%clk
0:02:47.6]} 13. Nf1 {[%clk 0:02:18.4]} 13... g5 {[%clk 0:02:45.6]} 14. Bg3
{[%clk 0:02:05.6]} 14... Nh5 {[%clk 0:02:17]} 15. Nxe5 {[%clk 0:01:32.1]} 15...
Nxe5 {[%clk 0:01:54.9]} 16. Qxh5 {[%clk 0:01:07.4]} 16... Bxd5 {[%clk 0:01:55]}
17. exd5 {[%clk 0:01:08.3]} 17... Kg7 {[%clk 0:01:53.3]} 18. Ne3 {[%clk
0:01:07]} 18... Qf6 {[%clk 0:01:53.6]} 19. d4 {[%clk 0:01:04.1]} 19... Nc4
{[%clk 0:01:44.5]} 20. Ng4 {[%clk 0:00:32.5]} 20... Qg6 {[%clk 0:01:39.9]} 21.
Qxg6+ {[%clk 0:00:31.8]} 21... Kxg6 {[%clk 0:01:39.3]} 22. b3 {[%clk 0:00:24.4]}
22... h5 {[%clk 0:01:38.9]} 23. Ne5+ {[%clk 0:00:21.3]} 23... Nxe5 {[%clk
0:01:33.3]} 24. dxe5 {[%clk 0:00:22.2]} 24... Bb4 {[%clk 0:01:33.3]} 25. Re4
{[%clk 0:00:21.4]} 25... Bc3 {[%clk 0:01:33.5]} 26. Rd1 {[%clk 0:00:19.9]} 26...
h4 {[%clk 0:01:33.7]} 27. Rd3 {[%clk 0:00:10]} 27... b4 {[%clk 0:01:33.7]} 28.
Bxh4 {[%clk 0:00:08.9]} 28... gxh4 {[%clk 0:01:34.6]} 29. f4 {[%clk 0:00:07.1]}
29... Kf5 {[%clk 0:01:32.3]} 30. Rc4 {[%clk 0:00:06.8]} 30... Rb7 {[%clk
0:01:27.5]} 31. Kf2 {[%clk 0:00:06.2]} 31... f6 {[%clk 0:01:27.6]} 32. exf6
{[%clk 0:00:03.4]} 32... Bxf6 {[%clk 0:01:28.5]} 33. Kf3 {[%clk 0:00:03.5]}
33... Re1 {[%clk 0:01:24.2]} 34. g4+ {[%clk 0:00:03]} 34... Kg6 {[%clk
0:01:23.7]} 35. g5 {[%clk 0:00:02.4]} 35... Bc3 {[%clk 0:01:20.1]} 36. Kg4
{[%clk 0:00:02.6]} 36... Rg1+ {[%clk 0:01:19.7]} 37. Kh3 {[%clk 0:00:02.2]}
37... Kf5 {[%clk 0:01:14.8]} 38. Rf3 {[%clk 0:00:01.9]} 38... d6 {[%clk
0:01:12.3]} 39. Rc6 {[%clk 0:00:01.6]} 39... Rb5 {[%clk 0:01:11]} 40. Rxa6
{[%clk 0:00:01.5]} 40... Rxd5 {[%clk 0:01:11.3]} 41. Ra8 {[%clk 0:00:01.7]}
41... Rd2 {[%clk 0:01:10.7]} 42. Rf8+ {[%clk 0:00:02.1]} 42... Kg6 {[%clk
0:01:10.8]} 43. Rg8+ {[%clk 0:00:02.3]} 43... Kh7 {[%clk 0:01:10.8]} 44. Rf8
{[%clk 0:00:02.5]} 44... Rh1 {[%clk 0:01:11.1]} 45. Rc8 {[%clk 0:00:02]} 45...
Rdxh2+ {[%clk 0:01:09.9]} 46. Kg4 {[%clk 0:00:02.5]} 46... Rg2+ {[%clk
0:01:09.9]} 47. Kh5 {[%clk 0:00:02.9]} 47... h3 {[%clk 0:00:44.7]} 48. Rxc7+
{[%clk 0:00:03]} 48... Bg7 {[%clk 0:00:45.2]} 49. f5 {[%clk 0:00:02.6]} 49...
Rxg5+ {[%clk 0:00:45]} 50. Kxg5 {[%clk 0:00:02.5]} 50... Rg1+ {[%clk 0:00:43.6]}
51. Kh5 {[%clk 0:00:01.9]} 51... h2 {[%clk 0:00:43.3]} 52. Rh3 {[%clk
0:00:01.9]} 52... h1=Q {[%clk 0:00:43.2]} 53. Rxh1 {[%clk 0:00:01.9]} 53...
Rxh1+ {[%clk 0:00:44.1]} 54. Kg5 {[%clk 0:00:02.5]} 54... Rg1+ {[%clk
0:00:44.6]} 55. Kf4 {[%clk 0:00:02.8]} 55... Rf1+ {[%clk 0:00:45.1]} 56. Kg5
{[%clk 0:00:02.8]} 56... Kg8 {[%clk 0:00:44.8]} 57. Kg6 {[%clk 0:00:02.6]} 57...
Rg1+ {[%clk 0:00:44.3]} 58. Kh5 {[%clk 0:00:02.9]} 58... Bf6 {[%clk 0:00:43.5]}
59. Ra7 {[%clk 0:00:02.1]} 59... Rg5+ {[%clk 0:00:42.2]} 60. Kh6 {[%clk
0:00:01.9]} 60... Kf8 {[%clk 0:00:40.8]} 61. Ra8+ {[%clk 0:00:01.7]} 61... Ke7
{[%clk 0:00:39.7]} 62. Ra7+ {[%clk 0:00:01.7]} 62... Kd8 {[%clk 0:00:39.3]} 63.
Rb7 {[%clk 0:00:01.4]} 63... Rxf5 {[%clk 0:00:35.5]} 0-1

[Event "*** SCC Grand Prix: Titled Tuesday Blitz"]
[Site "Chess.com"]
[Date "2020.06.23"]
[Round "3"]
[White "ElviraBerend"]
[Black "annamaja"]
[Result "1-0"]
[WhiteElo "2487"]
[BlackElo "2215"]
[TimeControl "180+1"]
[EndTime "10:29:35 PDT"]
[Termination "ElviraBerend won by resignation"]

1. d4 {[%clk 0:03:00.9]} 1... d5 {[%clk 0:02:59.7]} 2. c4 {[%clk 0:02:59.2]}
2... c6 {[%clk 0:03:00]} 3. Nf3 {[%clk 0:02:58.9]} 3... Nf6 {[%clk 0:02:59.6]}
4. Qc2 {[%clk 0:02:56.8]} 4... g6 {[%clk 0:02:57.5]} 5. Bf4 {[%clk 0:02:55.3]}
5... Bf5 {[%clk 0:02:57]} 6. Qc1 {[%clk 0:02:52]} 6... Bg7 {[%clk 0:02:55.6]} 7.
e3 {[%clk 0:02:51.2]} 7... O-O {[%clk 0:02:54.8]} 8. Be2 {[%clk 0:02:51.2]} 8...
Nbd7 {[%clk 0:02:51.6]} 9. O-O {[%clk 0:02:50.6]} 9... Re8 {[%clk 0:02:30.4]}
10. h3 {[%clk 0:02:49.7]} 10... h6 {[%clk 0:02:12.1]} 11. Nc3 {[%clk 0:02:48.3]}
11... g5 {[%clk 0:02:10.1]} 12. Bh2 {[%clk 0:02:47.5]} 12... Rc8 {[%clk
0:02:05.4]} 13. Ne5 {[%clk 0:02:41.8]} 13... Nxe5 {[%clk 0:01:41.2]} 14. dxe5
{[%clk 0:02:39.9]} 14... Nd7 {[%clk 0:01:33.6]} 15. g4 {[%clk 0:02:37.6]} 15...
Bg6 {[%clk 0:01:29.4]} 16. f4 {[%clk 0:02:36.8]} 16... gxf4 {[%clk 0:01:23.5]}
17. exf4 {[%clk 0:02:35.7]} 17... d4 {[%clk 0:01:18.6]} 18. Nd1 {[%clk
0:02:28.4]} 18... Bh7 {[%clk 0:00:44.7]} 19. Nf2 {[%clk 0:02:26.8]} 19... Nc5
{[%clk 0:00:32.1]} 20. Qd2 {[%clk 0:02:22.6]} 20... Ne4 {[%clk 0:00:29.4]} 21.
Nxe4 {[%clk 0:02:21.7]} 21... Bxe4 {[%clk 0:00:30.3]} 22. Bd3 {[%clk 0:02:21.7]}
22... Bxd3 {[%clk 0:00:24.9]} 23. Qxd3 {[%clk 0:02:20.9]} 23... c5 {[%clk
0:00:24.1]} 24. f5 {[%clk 0:02:18.9]} 24... Qb6 {[%clk 0:00:21]} 25. b3 {[%clk
0:02:18]} 25... Rc6 {[%clk 0:00:09.5]} 26. Rae1 {[%clk 0:02:14.7]} 26... h5
{[%clk 0:00:09.8]} 27. Bf4 {[%clk 0:02:08.1]} 27... Bh6 {[%clk 0:00:05.3]} 28.
g5 {[%clk 0:02:04.3]} 28... Bg7 {[%clk 0:00:05.6]} 29. f6 {[%clk 0:02:02]} 29...
Bh8 {[%clk 0:00:02.2]} 30. Re2 {[%clk 0:01:59.3]} 30... exf6 {[%clk 0:00:01.2]}
31. gxf6 {[%clk 0:01:58.4]} 31... Bxf6 {[%clk 0:00:01.8]} 32. exf6 {[%clk
0:01:55.5]} 32... Rxe2 {[%clk 0:00:02.7]} 33. Qxe2 {[%clk 0:01:54.9]} 33... Rxf6
{[%clk 0:00:03.6]} 34. Qe8+ {[%clk 0:01:52.2]} 34... Kh7 {[%clk 0:00:02.8]} 35.
Qe4+ {[%clk 0:01:33.1]} 35... Rg6+ {[%clk 0:00:03.1]} 36. Kh2 {[%clk 0:01:31.8]}
36... Qf6 {[%clk 0:00:03.4]} 37. Rf2 {[%clk 0:01:30.3]} 37... Qh4 {[%clk
0:00:02.9]} 38. Qf3 {[%clk 0:01:27.6]} 38... Rf6 {[%clk 0:00:02.7]} 39. Qg3
{[%clk 0:01:25.2]} 39... Qxg3+ {[%clk 0:00:02.8]} 40. Kxg3 {[%clk 0:01:24.4]}
40... Rg6+ {[%clk 0:00:03.1]} 41. Kf3 {[%clk 0:01:24.1]} 41... Re6 {[%clk
0:00:03.5]} 42. Rg2 {[%clk 0:01:23.2]} 42... d3 {[%clk 0:00:03.1]} 43. Rd2
{[%clk 0:01:22.2]} 43... Ra6 {[%clk 0:00:02.7]} 44. Ke3 {[%clk 0:01:21.3]} 44...
Kg6 {[%clk 0:00:02.6]} 45. Kxd3 {[%clk 0:01:21.4]} 45... Kf5 {[%clk 0:00:03.3]}
46. Be3 {[%clk 0:01:21.3]} 46... Ke5 {[%clk 0:00:03.1]} 47. Rf2 {[%clk
0:01:20.9]} 47... f5 {[%clk 0:00:03.8]} 48. Bf4+ {[%clk 0:01:20.6]} 48... Kf6
{[%clk 0:00:04.3]} 49. h4 {[%clk 0:01:21.3]} 49... Re6 {[%clk 0:00:04.2]} 50.
Bg5+ {[%clk 0:01:21.3]} 50... Kg6 {[%clk 0:00:04.7]} 51. Re2 {[%clk 0:01:21.2]}
51... Rd6+ {[%clk 0:00:05.2]} 52. Kc3 {[%clk 0:01:21.4]} 52... Rd1 {[%clk
0:00:04.8]} 53. Rd2 {[%clk 0:01:20.4]} 53... Rf1 {[%clk 0:00:04.6]} 54. Rd6+
{[%clk 0:01:19.9]} 54... Kg7 {[%clk 0:00:03.6]} 55. Rf6 {[%clk 0:01:19.6]} 55...
Rf3+ {[%clk 0:00:04]} 56. Kb2 {[%clk 0:01:19.1]} 56... Rf2+ {[%clk 0:00:04.5]}
57. Ka3 {[%clk 0:01:19.2]} 57... b6 {[%clk 0:00:03.7]} 58. Rd6 {[%clk
0:01:16.4]} 58... Kf7 {[%clk 0:00:03.5]} 59. Rd7+ {[%clk 0:01:16.4]} 59... Ke6
{[%clk 0:00:03.9]} 60. Rxa7 {[%clk 0:01:16.8]} 60... f4 {[%clk 0:00:04.4]} 61.
Re7+ {[%clk 0:01:16.3]} 61... Kf5 {[%clk 0:00:03.5]} 62. Rf7+ {[%clk 0:01:16.3]}
62... Kg4 {[%clk 0:00:04]} 63. b4 {[%clk 0:01:12.9]} 63... Rf3+ {[%clk
0:00:03.6]} 64. Ka4 {[%clk 0:01:12.8]} 64... cxb4 {[%clk 0:00:02.5]} 65. Kxb4
{[%clk 0:01:12.9]} 65... Rf2 {[%clk 0:00:03]} 66. a4 {[%clk 0:01:12.9]} 66... f3
{[%clk 0:00:03.3]} 67. Be3 {[%clk 0:01:10.6]} 67... Re2 {[%clk 0:00:02.9]} 68.
Bxb6 {[%clk 0:01:10.5]} 68... Rb2+ {[%clk 0:00:02.8]} 69. Ka5 {[%clk 0:01:09.4]}
69... Kxh4 {[%clk 0:00:03.2]} 70. c5 {[%clk 0:01:08.1]} 70... f2 {[%clk
0:00:02.1]} 71. c6 {[%clk 0:01:07.7]} 71... Kg3 {[%clk 0:00:02.6]} 72. Bxf2+
{[%clk 0:01:06.3]} 72... Rxf2 {[%clk 0:00:01.9]} 73. Rxf2 {[%clk 0:01:05.3]}
73... Kxf2 {[%clk 0:00:02.8]} 74. c7 {[%clk 0:01:05.2]} 74... h4 {[%clk
0:00:03.7]} 75. c8=Q {[%clk 0:01:05.4]} 75... Kg2 {[%clk 0:00:03.3]} 76. Qg4+
{[%clk 0:01:04.9]} 1-0

[Event "*** SCC Grand Prix: Titled Tuesday Blitz"]
[Site "Chess.com"]
[Date "2020.06.23"]
[Round "3"]
[White "HunterBRR"]
[Black "abubakrtagelsir"]
[Result "0-1"]
[WhiteElo "2093"]
[BlackElo "2335"]
[TimeControl "180+1"]
[EndTime "10:29:35 PDT"]
[Termination "abubakrtagelsir won on time"]

1. d4 {[%clk 0:03:00.9]} 1... d6 {[%clk 0:03:00.9]} 2. Nf3 {[%clk 0:03:00.1]}
2... Nf6 {[%clk 0:03:01.8]} 3. c4 {[%clk 0:02:59.6]} 3... g6 {[%clk 0:03:02.7]}
4. Nc3 {[%clk 0:02:59]} 4... Bg7 {[%clk 0:03:03.6]} 5. e4 {[%clk 0:02:58.9]}
5... O-O {[%clk 0:03:03]} 6. Be2 {[%clk 0:02:59.1]} 6... Na6 {[%clk 0:02:58.6]}
7. Be3 {[%clk 0:02:57.9]} 7... e5 {[%clk 0:02:56.3]} 8. O-O {[%clk 0:02:56.4]}
8... Ng4 {[%clk 0:02:55.9]} 9. Bg5 {[%clk 0:02:55.4]} 9... Qe8 {[%clk
0:02:55.8]} 10. d5 {[%clk 0:02:48.1]} 10... h6 {[%clk 0:02:53.6]} 11. Bd2 {[%clk
0:02:43.1]} 11... f5 {[%clk 0:02:53]} 12. Ne1 {[%clk 0:02:37.1]} 12... Nf6
{[%clk 0:02:50.7]} 13. f3 {[%clk 0:02:35.1]} 13... f4 {[%clk 0:02:49.5]} 14. Rb1
{[%clk 0:02:32.2]} 14... g5 {[%clk 0:02:48.3]} 15. b4 {[%clk 0:02:31.7]} 15...
Qg6 {[%clk 0:02:47.3]} 16. Nd3 {[%clk 0:02:29.6]} 16... h5 {[%clk 0:02:43.7]}
17. c5 {[%clk 0:02:12.5]} 17... g4 {[%clk 0:02:41.9]} 18. cxd6 {[%clk
0:01:23.9]} 18... cxd6 {[%clk 0:02:41.2]} 19. Nb5 {[%clk 0:01:18.5]} 19... h4
{[%clk 0:02:23.4]} 20. Nxd6 {[%clk 0:01:05.6]} 20... gxf3 {[%clk 0:02:05.7]} 21.
Bxf3 {[%clk 0:00:59.9]} 21... Bg4 {[%clk 0:02:05.1]} 22. Nxe5 {[%clk 0:00:54.9]}
22... Bxf3 {[%clk 0:02:04.5]} 23. Nxg6 {[%clk 0:00:46.9]} 23... Bxd1 {[%clk
0:02:03.6]} 24. Nxf8 {[%clk 0:00:42]} 24... Bxf8 {[%clk 0:01:55.2]} 25. Rbxd1
{[%clk 0:00:30.5]} 25... Bxd6 {[%clk 0:01:53.7]} 26. Bxf4 {[%clk 0:00:30.9]}
26... Nxe4 {[%clk 0:01:52.2]} 27. Rde1 {[%clk 0:00:20.3]} 27... Bxf4 {[%clk
0:01:47.2]} 28. Rxf4 {[%clk 0:00:18.8]} 28... Nd6 {[%clk 0:01:42.6]} 29. Re5
{[%clk 0:00:17.4]} 29... Kg7 {[%clk 0:01:12.9]} 30. Rg5+ {[%clk 0:00:16.5]}
30... Kh6 {[%clk 0:01:12.4]} 31. Re5 {[%clk 0:00:13.4]} 31... Rd8 {[%clk
0:01:02.8]} 32. Re6+ {[%clk 0:00:12.8]} 32... Kg5 {[%clk 0:01:02.3]} 33. Rff6
{[%clk 0:00:11.6]} 33... Ne4 {[%clk 0:00:58.2]} 34. Rg6+ {[%clk 0:00:11]} 34...
Kf5 {[%clk 0:00:57.5]} 35. Rh6 {[%clk 0:00:10.6]} 35... Rxd5 {[%clk 0:00:51.9]}
36. h3 {[%clk 0:00:08.1]} 36... Nxb4 {[%clk 0:00:42.2]} 37. Re7 {[%clk
0:00:07.1]} 37... Rd1+ {[%clk 0:00:20]} 38. Kh2 {[%clk 0:00:07.2]} 38... Nd5
{[%clk 0:00:20.2]} 39. Rf7+ {[%clk 0:00:05.2]} 39... Kg5 {[%clk 0:00:17]} 40.
Rh8 {[%clk 0:00:05.1]} 40... Ndf6 {[%clk 0:00:14.9]} 41. Rxb7 {[%clk 0:00:02.1]}
41... Ng3 {[%clk 0:00:11.6]} 42. Rb5+ {[%clk 0:00:02]} 42... Nd5 {[%clk
0:00:11.6]} 0-1